[Event "FIDE Chesscom Grand Swiss 2019"]
[Site "Douglas-Isle of Man"]
[Date "2019.10.13"]
[Round "4.28"]
[White "Lei, Tingjie"]
[Black "Esipenko, Andrey"]
[Result "1/2-1/2"]
[ECO "C54"]
[WhiteElo "2469"]
[BlackElo "2624"]
[Annotator "RC"]
[PlyCount "93"]
[EventDate "2019.10.10"]
[EventType "swiss"]
[EventCountry "GBR"]
[SourceTitle "playchess.com"]
[Source "ChessBase"]
[SourceQuality "1"]
[TimeControl "40/6000+30:20/3000+30:900+30"]

1. e4 {[%emt 0:00:00]} e5 {[%emt 0:00:00]} 2. Nf3 {[%emt 0:00:00]} Nc6 {[%emt 0:00:00]} 3. Bc4 {[%emt 0:00:07]} Bc5 {[%emt 0:00:30]} 4. O-O {[%emt 0:01:16]} Nf6 {[%emt 0:00:23]} 5. d3 {[%emt 0:00:07]} d6 {[%emt 0:00:26]} 6. c3 {[%emt 0:00:41]} O-O {[%emt 0:00:20]} 7. h3 {[%emt 0:02:54]} h6 {[%emt 0:01:20]} 8. Re1 {[%emt 0:00:21]} a5 {[%emt 0:01:29]} 9. Nbd2 {[%emt 0:01:09]} Be6 {[%emt 0:00:24]} 10. Bb5 {[%emt 0:02:50]} Qb8 {[%emt 0:00:25]} 11. Nf1 {[%emt 0:00:35]} Qa7 {[%emt 0:00:12]} 12. Qe2 {[%emt 0:01:09]} a4 {[%emt 0:21:34]} 13. Bxc6 {[%emt 0:20:48]} bxc6 {[%emt 0:00:06]} 14. Ng3 {[%emt 0:00:12]} Qb8 {[%emt 0:29:26]} 15. Nh4 {[%emt 0:11:13]} Qd8 {[%emt 0:00:50]} 16. Nhf5 {[%emt 0:01:12]} Bb6 {[%emt 0:02:36]} 17. Kh2 {[%emt 0:12:41]} Kh7 {[%emt 0:06:00]} 18. d4 {[%emt 0:15:00]} Ng8 {[%emt 0:06:22]} 19. Rd1 {[%emt 0:13:53]} Qe8 {[%emt 0:04:33]} 20. Ne3 {[%emt 0:09:22]} f6 {[%emt 0:01:36]} 21. Qc2 {[%emt 0:05:47]} Kh8 {[%emt 0:05:17]} 22. d5 {[%emt 0:01:08]} cxd5 {[%emt 0:00:45]} 23. Nxd5 {[%emt 0:00:05]} Bxd5 {[%emt 0:00:40]} 24. Rxd5 {[%emt 0:00:06]} Ne7 {[%emt 0:00:30]} 25. Rd1 {[%emt 0:00:15]} Bc5 {[%emt 0:04:59]} 26. Rb1 {[%emt 0:03:13]} c6 {[%emt 0:01:16]} 27. Qe2 {[%emt 0:00:56]} d5 {[%emt 0:02:55]} 28. b4 {[%emt 0:00:08]} axb3 {[%emt 0:00:28]} 29. axb3 {[%emt 0:00:03]} f5 {[%emt 0:01:57]} 30. exf5 {[%emt 0:04:02]} Nxf5 {[%emt 0:00:25]} 31. Nxf5 {[%emt 0:00:07]} Rxf5 {[%emt 0:00:03]} 32. Be3 {[%emt 0:00:26]} Qf8 {[%emt 0:05:04]} 33. Bxc5 {[%emt 0:01:50]} Qxc5 {[%emt 0:00:05]} 34. f3 {[%emt 0:00:42]} Qxc3 {[%emt 0:02:27]} 35. Rdc1 {[%emt 0:00:16]} Qd4 {[%emt 0:00:24]} 36. Rxc6 {[%emt 0:00:14]} e4 {[%emt 0:00:54]} 37. fxe4 {[%emt 0:01:23]} Qe5+ {[%emt 0:01:43]} 38. Kg1 {[%emt 0:01:12]} dxe4 {[%emt 0:00:54]} 39. Re1 {[%emt 0:00:06]} Ra1 {[%emt 0:01:05]} 40. Rc8+ {[%emt 0:01:13]} Kh7 {[%emt 0:00:08]} 41. Rxa1 {[%emt 0:14:01]} Qxa1+ {[%emt 0:00:17]} 42. Kh2 {[%emt 0:00:01]} Qe5+ {[%emt 0:01:43]} 43. Kg1 {[%emt 0:03:28]} Qd4+ {[%emt 0:06:16]} 44. Kh1 {[%emt 0:12:12]} Qa1+ {[%emt 0:10:44]} 45. Kh2 {[%emt 0:00:06]} Qe5+ {[%emt 0:00:06]} 46. Kg1 {[%emt 0:00:08]} Qd4+ {[%emt 0:12:43]} 47. Kh1 {[%emt 0:00:07]} 1/2-1/2

[Event "FIDE Chesscom Grand Swiss 2019"]
[Site "Douglas-Isle of Man"]
[Date "2019.10.13"]
[Round "4.29"]
[White "Sethuraman, S.P."]
[Black "Clarke, Brandon G I"]
[Result "1-0"]
[ECO "B51"]
[WhiteElo "2624"]
[BlackElo "2445"]
[Annotator "RC"]
[PlyCount "67"]
[EventDate "2019.10.10"]
[EventType "swiss"]
[EventCountry "GBR"]
[SourceTitle "playchess.com"]
[Source "ChessBase"]
[SourceQuality "1"]
[TimeControl "40/6000+30:20/3000+30:900+30"]

1. e4 {[%emt 0:00:00]} c5 {[%emt 0:00:00]} 2. Nf3 {[%emt 0:00:05]} d6 {[%emt 0:00:00]} 3. Bb5+ {[%emt 0:00:08]} Nd7 {[%emt 0:00:30]} 4. Ba4 {[%emt 0:00:33]} Ngf6 {[%emt 0:00:48]} 5. O-O {[%emt 0:00:44]} a6 {[%emt 0:05:06]} 6. c4 {[%emt 0:01:29]} g6 {[%emt 0:06:33]} 7. Nc3 {[%emt 0:01:18]} Bg7 {[%emt 0:00:11]} 8. d4 {[%emt 0:01:47]} cxd4 {[%emt 0:00:21]} 9. Nxd4 {[%emt 0:00:41]} O-O {[%emt 0:00:27]} 10. h3 {[%emt 0:28:25]} Nc5 {[%emt 0:09:26]} 11. Bc2 {[%emt 0:00:45]} Ne6 {[%emt 0:02:26]} 12. Be3 {[%emt 0:02:42]} Nxd4 {[%emt 0:02:47]} 13. Bxd4 {[%emt 0:00:06]} Be6 {[%emt 0:00:21]} 14. Bd3 {[%emt 0:06:49]} Nd7 {[%emt 0:01:20]} 15. Bxg7 {[%emt 0:00:50]} Kxg7 {[%emt 0:00:04]} 16. b3 {[%emt 0:00:55]} Qa5 {[%emt 0:01:22]} 17. Rc1 {[%emt 0:03:28]} Rfc8 {[%emt 0:01:09]} 18. Qd2 {[%emt 0:07:18]} f6 {[%emt 0:07:13]} 19. Qb2 {[%emt 0:02:47]} Qe5 {[%emt 0:17:42]} 20. Kh1 {[%emt 0:11:35]} g5 {[%emt 0:05:42]} 21. Qd2 {[%emt 0:03:30]} Nc5 {[%emt 0:05:11]} 22. Bb1 {[%emt 0:01:38]} b5 {[%emt 0:03:58]} 23. Nd5 {[%emt 0:03:24]} bxc4 {[%emt 0:06:29]} 24. Rxc4 {[%emt 0:00:47]} a5 {[%emt 0:07:11]} 25. Re1 {[%emt 0:04:33]} Kf7 {[%emt 0:11:01]} 26. Bc2 {[%emt 0:08:52]} Ra6 {[%emt 0:06:40]} 27. Bd1 {[%emt 0:01:22]} Bd7 {[%emt 0:02:09]} 28. g3 {[%emt 0:10:18]} Bc6 {[%emt 0:04:40]} 29. Kh2 {[%emt 0:01:21]} e6 {[%emt 0:01:19]} 30. Nc3 {[%emt 0:00:53]} g4 {[%emt 0:02:18]} 31. Bxg4 {[%emt 0:00:49]} Qg5 {[%emt 0:00:31]} 32. f4 {[%emt 0:02:57]} Qg8 {[%emt 0:00:02]} 33. Qxd6 {[%emt 0:00:36]} Bd5 {[%emt 0:00:59]} 34. Bh5+ {[%emt 0:00:09]} 1-0

[Event "FIDE Chesscom Grand Swiss 2019"]
[Site "Douglas-Isle of Man"]
[Date "2019.10.13"]
[Round "4.30"]
[White "Paravyan, David"]
[Black "Dreev, Aleksey"]
[Result "0-1"]
[ECO "B40"]
[WhiteElo "2602"]
[BlackElo "2662"]
[Annotator "RC"]
[PlyCount "72"]
[EventDate "2019.10.10"]
[EventType "swiss"]
[EventCountry "GBR"]
[SourceTitle "playchess.com"]
[Source "ChessBase"]
[SourceQuality "1"]
[TimeControl "40/6000+30:20/3000+30:900+30"]

1. e4 {[%emt 0:00:00]} c5 {[%emt 0:01:33]} 2. Nf3 {[%emt 0:00:00]} e6 {[%emt 0:00:04]} 3. Nc3 {[%emt 0:00:00]} Nc6 {[%emt 0:00:25]} 4. h3 {[%emt 0:00:00]} Qb6 {[%emt 0:07:44]} 5. b3 {[%emt 0:00:01]} d6 {[%emt 0:00:56]} 6. Bb2 {[%emt 0:00:09]} Nf6 {[%emt 0:00:18]} 7. Bb5 {[%emt 0:00:03]} e5 {[%emt 0:07:02]} 8. Qe2 {[%emt 0:03:53]} a6 {[%emt 0:07:04]} 9. Bc4 {[%emt 0:16:08]} Be7 {[%emt 0:01:43]} 10. Nd5 {[%emt 0:13:47]} Nxd5 {[%emt 0:02:22]} 11. exd5 {[%emt 0:00:04]} Nd4 {[%emt 0:04:52]} 12. Nxd4 {[%emt 0:00:24]} cxd4 {[%emt 0:00:19]} 13. O-O-O {[%emt 0:09:27]} O-O {[%emt 0:04:29]} 14. f4 {[%emt 0:00:17]} Bf6 {[%emt 0:01:40]} 15. Rhf1 {[%emt 0:00:12]} Bd7 {[%emt 0:02:57]} 16. Kb1 {[%emt 0:11:22]} Rac8 {[%emt 0:20:05]} 17. Bd3 {[%emt 0:18:52]} Bb5 {[%emt 0:01:30]} 18. Rc1 {[%emt 0:13:27]} Qc5 {[%emt 0:15:41]} 19. Qe4 {[%emt 0:00:35]} Bxd3 {[%emt 0:06:29]} 20. cxd3 {[%emt 0:00:05]} Qa5 {[%emt 0:01:19]} 21. Rxc8 {[%emt 0:11:37]} Rxc8 {[%emt 0:00:11]} 22. Rc1 {[%emt 0:00:03]} Rxc1+ {[%emt 0:02:47]} 23. Bxc1 {[%emt 0:00:03]} g6 {[%emt 0:00:34]} 24. g3 {[%emt 0:06:05]} Kg7 {[%emt 0:03:17]} 25. a3 {[%emt 0:03:02]} h5 {[%emt 0:01:19]} 26. fxe5 {[%emt 0:01:13]} Bxe5 {[%emt 0:01:49]} 27. g4 {[%emt 0:00:03]} hxg4 {[%emt 0:01:18]} 28. hxg4 {[%emt 0:00:03]} Qd8 {[%emt 0:01:17]} 29. a4 {[%emt 0:02:05]} Kh6 {[%emt 0:01:51]} 30. Bb2 {[%emt 0:01:22]} Qf6 {[%emt 0:00:22]} 31. Qh1+ {[%emt 0:00:05]} Kg5 {[%emt 0:00:41]} 32. Qc1 {[%emt 0:00:05]} Kxg4 {[%emt 0:08:15]} 33. Qc8+ {[%emt 0:00:03]} Kf3 {[%emt 0:00:16]} 34. a5 {[%emt 0:01:53]} g5 {[%emt 0:01:47]} 35. Qh3+ {[%emt 0:00:04]} Kf2 {[%emt 0:00:36]} 36. Kc2 {[%emt 0:00:31]} Qf4 {[%emt 0:00:41]} 0-1

[Event "FIDE Chesscom Grand Swiss 2019"]
[Site "Douglas-Isle of Man"]
[Date "2019.10.13"]
[Round "4.30"]
[White "Cramling, Pia"]
[Black "Vocaturo, Daniele"]
[Result "1/2-1/2"]
[ECO "E92"]
[WhiteElo "2462"]
[BlackElo "2620"]
[Annotator "RC"]
[PlyCount "77"]
[EventDate "2019.10.10"]
[EventType "swiss"]
[EventCountry "GBR"]
[SourceTitle "playchess.com"]
[Source "ChessBase"]
[SourceQuality "1"]
[TimeControl "40/6000+30:20/3000+30:900+30"]

1. d4 {[%emt 0:00:00]} Nf6 {[%emt 0:00:00]} 2. Nf3 {[%emt 0:00:00]} g6 {[%emt 0:00:37]} 3. c4 {[%emt 0:00:13]} Bg7 {[%emt 0:00:39]} 4. Nc3 {[%emt 0:00:20]} d6 {[%emt 0:00:56]} 5. e4 {[%emt 0:00:26]} O-O {[%emt 0:00:35]} 6. Be2 {[%emt 0:00:27]} e5 {[%emt 0:00:54]} 7. d5 {[%emt 0:00:17]} a5 {[%emt 0:01:48]} 8. Bg5 {[%emt 0:01:09]} Na6 {[%emt 0:01:40]} 9. Nd2 {[%emt 0:00:41]} Qe8 {[%emt 0:02:45]} 10. a3 {[%emt 0:13:47]} Bd7 {[%emt 0:02:00]} 11. b3 {[%emt 0:01:10]} Kh8 {[%emt 0:01:38]} 12. Rb1 {[%emt 0:27:08]} Ng8 {[%emt 0:03:12]} 13. O-O {[%emt 0:05:55]} f5 {[%emt 0:01:55]} 14. exf5 {[%emt 0:01:16]} gxf5 {[%emt 0:00:37]} 15. Bh5 {[%emt 0:00:09]} Qb8 {[%emt 0:03:01]} 16. b4 {[%emt 0:01:47]} Nf6 {[%emt 0:03:32]} 17. Re1 {[%emt 0:05:06]} h6 {[%emt 0:10:32]} 18. Bh4 {[%emt 0:00:40]} Nxh5 {[%emt 0:08:11]} 19. Qxh5 {[%emt 0:00:05]} e4 {[%emt 0:00:34]} 20. Rec1 {[%emt 0:14:18]} Be8 {[%emt 0:05:03]} 21. Qe2 {[%emt 0:01:37]} Bg6 {[%emt 0:02:21]} 22. f4 {[%emt 0:01:27]} axb4 {[%emt 0:16:19]} 23. axb4 {[%emt 0:00:06]} c5 {[%emt 0:10:17]} 24. dxc6 {[%emt 0:00:24]} bxc6 {[%emt 0:00:06]} 25. b5 {[%emt 0:04:53]} Nc5 {[%emt 0:01:01]} 26. bxc6 {[%emt 0:00:25]} Qc7 {[%emt 0:00:20]} 27. Nd5 {[%emt 0:03:03]} Qxc6 {[%emt 0:00:13]} 28. Rb6 {[%emt 0:02:08]} Qd7 {[%emt 0:01:03]} 29. Rcb1 {[%emt 0:02:50]} Rf7 {[%emt 0:04:24]} 30. Bf2 {[%emt 0:01:36]} Nd3 {[%emt 0:02:01]} 31. Be3 {[%emt 0:00:22]} Kh7 {[%emt 0:02:10]} 32. Nb3 {[%emt 0:01:20]} Rc8 {[%emt 0:07:23]} 33. Na5 {[%emt 0:03:57]} Qa4 {[%emt 0:04:27]} 34. Qd2 {[%emt 0:03:09]} Qd7 {[%emt 0:04:34]} 35. h3 {[%emt 0:01:11]} Qe6 {[%emt 0:02:53]} 36. Nc6 {[%emt 0:03:55]} Qd7 {[%emt 0:01:55]} 37. Na5 {[%emt 0:00:30]} Qe6 {[%emt 0:00:22]} 38. Nc6 {[%emt 0:04:29]} Qd7 {[%emt 0:01:57]} 39. Na5 {[%emt 0:00:53]} 1/2-1/2

[Event "FIDE Chesscom Grand Swiss 2019"]
[Site "Douglas-Isle of Man"]
[Date "2019.10.13"]
[Round "4.31"]
[White "L'Ami, Erwin"]
[Black "Danielian, Elina"]
[Result "1-0"]
[ECO "D26"]
[WhiteElo "2619"]
[BlackElo "2385"]
[Annotator "RC"]
[PlyCount "79"]
[EventDate "2019.10.10"]
[EventType "swiss"]
[EventCountry "GBR"]
[SourceTitle "playchess.com"]
[Source "ChessBase"]
[SourceQuality "1"]
[TimeControl "40/6000+30:20/3000+30:900+30"]

1. Nf3 {[%emt 0:00:00]} d5 {[%emt 0:00:00]} 2. d4 {[%emt 0:00:07]} Nf6 {[%emt 0:00:00]} 3. c4 {[%emt 0:00:07]} dxc4 {[%emt 0:00:00]} 4. e3 {[%emt 0:00:10]} e6 {[%emt 0:00:00]} 5. Bxc4 {[%emt 0:00:11]} c5 {[%emt 0:00:02]} 6. O-O {[%emt 0:00:15]} Nc6 {[%emt 0:00:28]} 7. Nc3 {[%emt 0:01:17]} a6 {[%emt 0:00:36]} 8. Be2 {[%emt 0:00:58]} cxd4 {[%emt 0:01:47]} 9. Nxd4 {[%emt 0:01:15]} Bd7 {[%emt 0:02:40]} 10. Bf3 {[%emt 0:10:16]} Qc7 {[%emt 0:03:34]} 11. Nxc6 {[%emt 0:13:03]} Bxc6 {[%emt 0:00:07]} 12. Bxc6+ {[%emt 0:09:33]} Qxc6 {[%emt 0:00:04]} 13. e4 {[%emt 0:00:28]} Nxe4 {[%emt 0:16:10]} 14. Nxe4 {[%emt 0:07:13]} Qxe4 {[%emt 0:00:04]} 15. Re1 {[%emt 0:03:06]} Qf5 {[%emt 0:02:24]} 16. g4 {[%emt 0:06:26]} Qb5 {[%emt 0:02:41]} 17. a4 {[%emt 0:03:49]} Qa5 {[%emt 0:04:05]} 18. Bf4 {[%emt 0:09:37]} Rd8 {[%emt 0:29:06]} 19. Qf3 {[%emt 0:04:58]} Bd6 {[%emt 0:01:13]} 20. Bxd6 {[%emt 0:10:50]} Rxd6 {[%emt 0:00:39]} 21. Qxb7 {[%emt 0:00:25]} O-O {[%emt 0:00:06]} 22. b4 {[%emt 0:00:38]} Qg5 {[%emt 0:00:16]} 23. Qg2 {[%emt 0:03:16]} Rfd8 {[%emt 0:02:14]} 24. h3 {[%emt 0:01:32]} h5 {[%emt 0:14:33]} 25. Rab1 {[%emt 0:07:47]} hxg4 {[%emt 0:06:50]} 26. Qxg4 {[%emt 0:00:41]} Qd2 {[%emt 0:00:31]} 27. b5 {[%emt 0:01:17]} axb5 {[%emt 0:01:14]} 28. axb5 {[%emt 0:00:11]} e5 {[%emt 0:12:45]} 29. Qf3 {[%emt 0:02:01]} Rg6+ {[%emt 0:00:40]} 30. Kf1 {[%emt 0:00:17]} Rf6 {[%emt 0:03:50]} 31. Qe3 {[%emt 0:00:31]} Qd5 {[%emt 0:00:36]} 32. Qe4 {[%emt 0:00:11]} Qc5 {[%emt 0:01:31]} 33. Re2 {[%emt 0:01:47]} Rb8 {[%emt 0:02:18]} 34. Rc2 {[%emt 0:00:47]} Qa3 {[%emt 0:00:43]} 35. Kg2 {[%emt 0:01:19]} Rh6 {[%emt 0:00:31]} 36. Qe3 {[%emt 0:00:51]} Qd6 {[%emt 0:00:54]} 37. Kh2 {[%emt 0:02:14]} Qd5 {[%emt 0:02:44]} 38. Rc5 {[%emt 0:01:50]} Qa2 {[%emt 0:00:26]} 39. Rg1 {[%emt 0:00:44]} Qe6 {[%emt 0:00:25]} 40. Rc6 {[%emt 0:00:23]} 1-0

[Event "FIDE Chesscom Grand Swiss 2019"]
[Site "Douglas-Isle of Man"]
[Date "2019.10.13"]
[Round "4.32"]
[White "Gavrilescu, David"]
[Black "Lu, Shanglei"]
[Result "0-1"]
[ECO "B51"]
[WhiteElo "2451"]
[BlackElo "2602"]
[Annotator "RC"]
[PlyCount "68"]
[EventDate "2019.10.10"]
[EventType "swiss"]
[EventCountry "GBR"]
[SourceTitle "playchess.com"]
[Source "ChessBase"]
[SourceQuality "1"]
[TimeControl "40/6000+30:20/3000+30:900+30"]

1. e4 {[%emt 0:00:00]} c5 {[%emt 0:00:00]} 2. Nf3 {[%emt 0:00:20]} d6 {[%emt 0:00:00]} 3. Bb5+ {[%emt 0:00:45]} Nd7 {[%emt 0:00:16]} 4. c3 {[%emt 0:00:41]} Ngf6 {[%emt 0:01:13]} 5. Bd3 {[%emt 0:00:30]} a6 {[%emt 0:10:23]} 6. Bc2 {[%emt 0:01:12]} b5 {[%emt 0:02:42]} 7. d4 {[%emt 0:00:51]} e5 {[%emt 0:02:54]} 8. d5 {[%emt 0:01:27]} Nb6 {[%emt 0:06:27]} 9. O-O {[%emt 0:04:55]} g6 {[%emt 0:01:18]} 10. Qe2 {[%emt 0:05:27]} Bd7 {[%emt 0:06:43]} 11. b3 {[%emt 0:02:53]} Bg7 {[%emt 0:03:30]} 12. a4 {[%emt 0:04:47]} O-O {[%emt 0:05:31]} 13. Bd2 {[%emt 0:11:34]} bxa4 {[%emt 0:16:24]} 14. bxa4 {[%emt 0:00:53]} Qe8 {[%emt 0:00:05]} 15. a5 {[%emt 0:16:57]} Bb5 {[%emt 0:01:01]} 16. Bd3 {[%emt 0:00:13]} Bxd3 {[%emt 0:00:25]} 17. Qxd3 {[%emt 0:00:06]} Nbxd5 {[%emt 0:13:59]} 18. Re1 {[%emt 0:08:48]} Qb8 {[%emt 0:00:26]} 19. exd5 {[%emt 0:08:45]} e4 {[%emt 0:00:52]} 20. Rxe4 {[%emt 0:01:26]} Nxe4 {[%emt 0:00:26]} 21. Qxe4 {[%emt 0:00:06]} Qb2 {[%emt 0:00:07]} 22. Qa4 {[%emt 0:04:02]} Rab8 {[%emt 0:01:59]} 23. Be1 {[%emt 0:04:29]} Rb5 {[%emt 0:24:15]} 24. h4 {[%emt 0:07:11]} Re8 {[%emt 0:01:54]} 25. Nbd2 {[%emt 0:00:38]} Bxc3 {[%emt 0:00:59]} 26. Rb1 {[%emt 0:04:44]} Rxe1+ {[%emt 0:00:09]} 27. Rxe1 {[%emt 0:00:07]} Bxd2 {[%emt 0:00:05]} 28. Re8+ {[%emt 0:04:21]} Kg7 {[%emt 0:00:03]} 29. Re7 {[%emt 0:09:29]} Qf6 {[%emt 0:03:54]} 30. Qe4 {[%emt 0:01:38]} Rb4 {[%emt 0:00:14]} 31. Qe2 {[%emt 0:00:36]} Rb1+ {[%emt 0:00:39]} 32. Kh2 {[%emt 0:00:02]} Bf4+ {[%emt 0:00:07]} 33. g3 {[%emt 0:00:07]} Rb2 {[%emt 0:00:07]} 34. Qe1 {[%emt 0:04:56]} Be5 {[%emt 0:00:37]} 0-1

[Event "FIDE Chesscom Grand Swiss 2019"]
[Site "Douglas-Isle of Man"]
[Date "2019.10.13"]
[Round "4.33"]
[White "Gonzalez Vidal, Yuri"]
[Black "Soumya, Swaminathan"]
[Result "1/2-1/2"]
[ECO "B31"]
[WhiteElo "2552"]
[BlackElo "2365"]
[Annotator "ChessBase"]
[PlyCount "87"]
[EventDate "2019.10.10"]
[EventType "swiss"]
[EventCountry "GBR"]
[SourceTitle "playchess.com"]
[Source "ChessBase"]
[SourceQuality "1"]
[TimeControl "40/6000+30:20/3000+30:900+30"]

1. e4 {[%emt 0:00:00]} c5 {[%emt 0:00:00]} 2. Nf3 {[%emt 0:00:00]} Nc6 {[%emt 0:00:00]} 3. Bb5 {[%emt 0:00:00]} g6 {[%emt 0:00:00]} 4. Bxc6 {[%emt 0:00:20]} dxc6 {[%emt 0:00:00]} 5. d3 {[%emt 0:00:15]} Bg7 {[%emt 0:00:00]} 6. h3 {[%emt 0:00:16]} Nf6 {[%emt 0:00:07]} 7. Nc3 {[%emt 0:00:35]} Nd7 {[%emt 0:00:23]} 8. Be3 {[%emt 0:00:31]} e5 {[%emt 0:00:22]} 9. Qd2 {[%emt 0:00:38]} h6 {[%emt 0:00:05]} 10. O-O {[%emt 0:02:11]} b6 {[%emt 0:00:15]} 11. Nh2 {[%emt 0:05:55]} Nf8 {[%emt 0:01:58]} 12. Ne2 {[%emt 0:00:49]} Ne6 {[%emt 0:16:19]} 13. Rae1 {[%emt 0:03:52]} Qd6 {[%emt 0:17:45]} 14. b3 {[%emt 0:05:23]} g5 {[%emt 0:09:15]} 15. Ng3 {[%emt 0:18:40]} Nf4 {[%emt 0:01:55]} 16. Bxf4 {[%emt 0:04:03]} exf4 {[%emt 0:02:10]} 17. e5 {[%emt 0:08:21]} Qg6 {[%emt 0:00:06]} 18. Ne4 {[%emt 0:00:16]} O-O {[%emt 0:02:23]} 19. Qc3 {[%emt 0:01:24]} Bf5 {[%emt 0:08:00]} 20. Nf6+ {[%emt 0:14:03]} Bxf6 {[%emt 0:21:02]} 21. exf6 {[%emt 0:00:09]} Rae8 {[%emt 0:00:20]} 22. Nf3 {[%emt 0:01:12]} Re6 {[%emt 0:01:39]} 23. Rxe6 {[%emt 0:01:56]} fxe6 {[%emt 0:00:06]} 24. Re1 {[%emt 0:01:16]} Qxf6 {[%emt 0:04:04]} 25. Qxf6 {[%emt 0:09:16]} Rxf6 {[%emt 0:00:36]} 26. Ne5 {[%emt 0:00:02]} Kg7 {[%emt 0:13:01]} 27. a4 {[%emt 0:01:50]} Rf8 {[%emt 0:00:05]} 28. a5 {[%emt 0:03:54]} b5 {[%emt 0:02:39]} 29. Nxc6 {[%emt 0:11:06]} a6 {[%emt 0:00:08]} 30. Re5 {[%emt 0:00:09]} c4 {[%emt 0:00:13]} 31. Nb4 {[%emt 0:04:20]} cxb3 {[%emt 0:06:37]} 32. cxb3 {[%emt 0:00:04]} Rc8 {[%emt 0:00:44]} 33. Nxa6 {[%emt 0:01:37]} Ra8 {[%emt 0:00:08]} 34. Nc7 {[%emt 0:06:29]} Rxa5 {[%emt 0:00:02]} 35. d4 {[%emt 0:00:08]} Ra7 {[%emt 0:03:11]} 36. Ne8+ {[%emt 0:01:34]} Kg6 {[%emt 0:00:40]} 37. Nd6 {[%emt 0:00:08]} Rd7 {[%emt 0:01:29]} 38. Nxf5 {[%emt 0:04:15]} exf5 {[%emt 0:00:02]} 39. Rxb5 {[%emt 0:00:40]} Rxd4 {[%emt 0:00:01]} 40. Rb6+ {[%emt 0:00:23]} Kg7 {[%emt 0:00:22]} 41. Rb7+ {[%emt 0:51:12]} Kg6 {[%emt 0:51:36]} 42. Rb6+ {[%emt 0:00:00]} Kg7 {[%emt 0:00:00]} 43. Rb7+ {[%emt 0:00:00]} Kg6 {[%emt 0:00:00]} 44. Rb6+ {[%emt 0:00:00]} 1/2-1/2

[Event "FIDE Chesscom Grand Swiss 2019"]
[Site "Douglas-Isle of Man"]
[Date "2019.10.13"]
[Round "4.34"]
[White "Houska, Jovanka"]
[Black "Boruchovsky, Avital"]
[Result "1/2-1/2"]
[ECO "E11"]
[WhiteElo "2430"]
[BlackElo "2533"]
[Annotator "ChessBase"]
[PlyCount "90"]
[EventDate "2019.10.10"]
[EventType "swiss"]
[EventCountry "GBR"]
[SourceTitle "playchess.com"]
[Source "ChessBase"]
[SourceQuality "1"]
[TimeControl "40/6000+30:20/3000+30:900+30"]

1. d4 {[%emt 0:00:00]} e6 {[%emt 0:00:00]} 2. c4 {[%emt 0:00:00]} Bb4+ {[%emt 0:00:13]} 3. Bd2 {[%emt 0:00:23]} a5 {[%emt 0:00:15]} 4. g3 {[%emt 0:00:20]} Nf6 {[%emt 0:02:23]} 5. Bg2 {[%emt 0:00:38]} d5 {[%emt 0:00:48]} 6. Qc2 {[%emt 0:06:12]} O-O {[%emt 0:05:49]} 7. Nf3 {[%emt 0:03:55]} b6 {[%emt 0:00:43]} 8. cxd5 {[%emt 0:04:34]} exd5 {[%emt 0:00:13]} 9. O-O {[%emt 0:01:44]} Be7 {[%emt 0:00:42]} 10. Ne5 {[%emt 0:01:33]} Bb7 {[%emt 0:05:00]} 11. Nc3 {[%emt 0:04:39]} Nbd7 {[%emt 0:03:01]} 12. Rfd1 {[%emt 0:04:54]} Rc8 {[%emt 0:07:00]} 13. Bf4 {[%emt 0:10:03]} Re8 {[%emt 0:12:01]} 14. Nb5 {[%emt 0:17:35]} Bd6 {[%emt 0:00:36]} 15. Na7 {[%emt 0:03:31]} Ra8 {[%emt 0:00:34]} 16. Nec6 {[%emt 0:01:41]} Bxc6 {[%emt 0:00:11]} 17. Nxc6 {[%emt 0:00:03]} Qc8 {[%emt 0:00:05]} 18. Rac1 {[%emt 0:08:06]} Qb7 {[%emt 0:27:03]} 19. e3 {[%emt 0:08:15]} Bxf4 {[%emt 0:11:56]} 20. gxf4 {[%emt 0:00:21]} Nf8 {[%emt 0:06:24]} 21. b4 {[%emt 0:03:26]} axb4 {[%emt 0:06:22]} 22. Nxb4 {[%emt 0:00:04]} Ra7 {[%emt 0:03:50]} 23. Qc6 {[%emt 0:01:01]} Qc8 {[%emt 0:00:01]} 24. Nxd5 {[%emt 0:00:57]} Nxd5 {[%emt 0:00:06]} 25. Qxd5 {[%emt 0:00:06]} Re6 {[%emt 0:00:53]} 26. Rd2 {[%emt 0:08:42]} Rg6 {[%emt 0:00:59]} 27. Rdc2 {[%emt 0:01:44]} Qg4 {[%emt 0:01:30]} 28. h3 {[%emt 0:02:10]} Qc8 {[%emt 0:02:33]} 29. f5 {[%emt 0:01:21]} Rg5 {[%emt 0:01:05]} 30. h4 {[%emt 0:05:58]} Rxf5 {[%emt 0:00:18]} 31. Rxc7 {[%emt 0:00:09]} Rxc7 {[%emt 0:00:54]} 32. Rxc7 {[%emt 0:00:01]} Qxc7 {[%emt 0:00:44]} 33. Qxf5 {[%emt 0:00:03]} g6 {[%emt 0:01:41]} 34. Qf6 {[%emt 0:01:06]} Qc1+ {[%emt 0:00:05]} 35. Kh2 {[%emt 0:00:05]} Qc7+ {[%emt 0:01:05]} 36. f4 {[%emt 0:01:06]} Qc3 {[%emt 0:01:37]} 37. Qe5 {[%emt 0:04:37]} Qe1 {[%emt 0:00:16]} 38. Kh3 {[%emt 0:01:49]} h5 {[%emt 0:00:10]} 39. f5 {[%emt 0:01:37]} Qe2 {[%emt 0:01:03]} 40. Qg3 {[%emt 0:02:40]} Qxa2 {[%emt 0:00:26]} 41. Bf3 {[%emt 0:05:19]} Qb1 {[%emt 0:04:01]} 42. fxg6 {[%emt 0:05:12]} Nxg6 {[%emt 0:02:05]} 43. Qg5 {[%emt 0:07:44]} Qf1+ {[%emt 0:01:39]} 44. Bg2 {[%emt 0:00:03]} Qd3 {[%emt 0:00:33]} 45. Bf3 {[%emt 0:03:13]} Qf1+ {[%emt 0:00:33]} 1/2-1/2

[Event "FIDE Chesscom Grand Swiss 2019"]
[Site "Douglas-Isle of Man"]
[Date "2019.10.13"]
[Round "4.35"]
[White "Baron, Tal"]
[Black "Dahl, Baard"]
[Result "1-0"]
[ECO "D02"]
[WhiteElo "2531"]
[BlackElo "2067"]
[Annotator "ChessBase"]
[PlyCount "57"]
[EventDate "2019.10.10"]
[EventType "swiss"]
[EventCountry "GBR"]
[SourceTitle "playchess.com"]
[Source "ChessBase"]
[SourceQuality "1"]
[TimeControl "40/6000+30:20/3000+30:900+30"]

1. d4 {[%emt 0:00:00]} Nf6 {[%emt 0:00:00]} 2. Nf3 {[%emt 0:00:00]} g6 {[%emt 0:00:00]} 3. Nbd2 {[%emt 0:00:14]} d5 {[%emt 0:00:00]} 4. b4 {[%emt 0:02:35]} Bg7 {[%emt 0:00:05]} 5. c4 {[%emt 0:00:20]} a5 {[%emt 0:04:49]} 6. b5 {[%emt 0:03:34]} dxc4 {[%emt 0:01:39]} 7. Bb2 {[%emt 0:14:55]} Bf5 {[%emt 0:15:20]} 8. Ne5 {[%emt 0:09:09]} Ng4 {[%emt 0:29:58]} 9. e4 {[%emt 0:12:25]} Nxe5 {[%emt 0:00:14]} 10. dxe5 {[%emt 0:00:09]} Be6 {[%emt 0:02:06]} 11. Bxc4 {[%emt 0:00:10]} Qd7 {[%emt 0:10:21]} 12. a4 {[%emt 0:04:45]} Bh6 {[%emt 0:06:35]} 13. Be2 {[%emt 0:04:10]} O-O {[%emt 0:00:37]} 14. Nf3 {[%emt 0:04:43]} Qxd1+ {[%emt 0:01:10]} 15. Rxd1 {[%emt 0:01:40]} Bb3 {[%emt 0:06:46]} 16. Ra1 {[%emt 0:05:21]} Bc2 {[%emt 0:00:18]} 17. e6 {[%emt 0:00:56]} Bxe4 {[%emt 0:02:03]} 18. Bc4 {[%emt 0:00:16]} Rd8 {[%emt 0:05:56]} 19. Ne5 {[%emt 0:11:14]} fxe6 {[%emt 0:01:59]} 20. Bxe6+ {[%emt 0:01:42]} Kf8 {[%emt 0:00:01]} 21. Nf7 {[%emt 0:01:03]} Rd2 {[%emt 0:01:11]} 22. Bc1 {[%emt 0:20:03]} Bg7 {[%emt 0:00:10]} 23. Bxd2 {[%emt 0:01:49]} Bxa1 {[%emt 0:00:05]} 24. Ke2 {[%emt 0:01:26]} Bg7 {[%emt 0:01:05]} 25. Ng5 {[%emt 0:00:24]} Bf5 {[%emt 0:05:22]} 26. Bxf5 {[%emt 0:00:36]} gxf5 {[%emt 0:00:02]} 27. Ne6+ {[%emt 0:00:06]} Kf7 {[%emt 0:00:18]} 28. Nxc7 {[%emt 0:00:05]} Ra7 {[%emt 0:01:17]} 29. b6 {[%emt 0:00:06]} 1-0